lending/lending_fUSD_20260328
["ID","MTS","AMOUNT","RATE_DAILY","PERIOD"]
[418983423,1774709448887,-182.803556,0.00024804,2]
[418983424,1774709448897,-151.0,0.00024804,2]
[418983425,1774709448906,-151.0,0.00024804,2]
[418983426,1774709448915,-151.0,0.00024804,2]
[418983427,1774709448926,-167.436847,0.00024804,2]
[418983428,1774709448937,-151.0,0.00024804,2]
[418983429,1774709448947,-151.0,0.00024804,2]
[418983430,1774709448957,-151.0,0.00024804,2]
[418983431,1774709448967,-151.0,0.00024804,2]
[418983432,1774709448976,-151.0,0.00024804,2]
[418983433,1774709448986,-406.762198,0.00024804,2]
[418983434,1774709448995,-406.762198,0.00024804,2]
[418983435,1774709449005,-406.762198,0.00024804,2]
[418983436,1774709449015,-406.762198,0.00024804,2]
[418983437,1774709449025,-1837.713949,0.00024804,2]
[418983438,1774709449035,-1837.713949,0.00024804,2]
[418983439,1774709449044,-1837.713949,0.00024804,2]
[418983440,1774709449054,-1837.713949,0.00024804,2]
[418983441,1774709449064,-170.706749,0.00024804,2]
[418983442,1774709449073,-170.706749,0.00024804,2]
[418983443,1774709449083,-170.706749,0.00024804,2]
[418983444,1774709449093,-170.706749,0.00024804,2]
[418983445,1774709449103,-9245.710185,0.00024804,2]
[418983446,1774709449113,-9245.710185,0.00024804,2]
[418983447,1774709449122,-9245.710185,0.00024804,2]
[418983448,1774709449133,-9245.710185,0.00024804,2]
[418983449,1774709449143,-151.0,0.00024804,2]
[418983450,1774709449153,-151.0,0.00024804,2]
[418983451,1774709449162,-151.0,0.00024804,2]
[418983452,1774709449171,-188.291554,0.00024804,2]
[418983453,1774709449181,-188.291554,0.00024804,2]
[418983454,1774709449190,-188.291554,0.00024804,2]
[418983455,1774709449200,-188.291554,0.00024804,2]
[418983456,1774709449210,-254.618086,0.00024804,2]
[418983457,1774709449220,-254.618086,0.00024804,2]
[418983458,1774709449229,-254.618086,0.00024804,2]
[418983459,1774709449238,-254.618086,0.00024804,2]
[418983460,1774709449247,-249.669586,0.00024804,2]
[418983461,1774709449257,-249.669586,0.00024804,2]
[418983462,1774709449267,-249.669586,0.00024804,2]
[418983463,1774709449276,-249.669586,0.00024804,2]
[418983464,1774709449286,-151.0,0.00024804,2]
[418983465,1774709449296,-155.156545,0.00024804,2]
[418983466,1774709449305,-606.320897,0.00024804,2]
[418983467,1774709449314,-151.0,0.00024804,2]
[418983468,1774709449324,-606.320897,0.00024804,2]
[418983469,1774709449334,-151.0,0.00024804,2]
[418983470,1774709449343,-606.320897,0.00024804,2]
[418983471,1774709449353,-151.0,0.00024804,2]
[418983472,1774709449362,-606.320897,0.00024804,2]
[418983473,1774709449372,-151.0,0.00024804,2]
[418983474,1774709449382,-151.0,0.00024804,2]
[418983475,1774709449391,-151.0,0.00024804,2]
[418983476,1774709449401,-393.472175,0.00024804,2]
[418983477,1774709449410,-151.0,0.00024804,2]
[418983478,1774709449420,-393.472175,0.00024804,2]
[418983479,1774709449430,-278.958688,0.00024804,2]
[418983480,1774709449440,-1000.0,0.00024841,2]
[418983481,1774709449450,-9676.1154,0.000249,2]
[418983482,1774709449460,-581840.680173,0.000249,3]
[418983483,1774709449469,-150.0,0.0002493,2]
[418983484,1774709449478,-1039.94150256,0.00024955,2]
[418983485,1774709449488,-400.0,0.0002497,2]
[418983486,1774709449498,-500.0,0.00024973,2]
[418983487,1774709449508,-74518.21831346,0.00025,7]
[418983488,1774709449518,-194.99465674,0.00025,5]
[418983489,1774709449528,-1121.0687962,0.00025,2]
[418983490,1774709449537,-208.82153082,0.00025,2]
[418983491,1774709449546,-3120.43706008,0.00025,7]
[418983492,1774709449556,-1796.32071877,0.00025,2]
[418983493,1774709449565,-2000.0,0.00025,2]
[418983494,1774709449575,-540.0,0.00025,2]
[418983495,1774709449585,-614.68152428,0.00025,2]
[418983496,1774709449595,-3062.92043185,0.00025,2]
[418983497,1774709449604,-7171.19314358,0.00025,2]
[418983498,1774709449615,-2214.08501761,0.00025,2]
[418983499,1774709449625,-168.35721843,0.00025,2]
[418983500,1774709449634,-3815.83210815,0.00025,2]
[418983501,1774709449644,-1337.49158608,0.00025,4]
[418983502,1774709449655,-99823.56867346,0.00025,2]
[418983503,1774709449664,-160.0,0.00025,7]
[418983504,1774709449673,-550.0,0.00025,2]
[418983505,1774709449683,-166.0,0.00025,3]
[418983506,1774709449692,-166.0,0.00025,3]
[418983507,1774709449702,-1523.0,0.00025,3]
[418983508,1774709449711,-152.0,0.00025,3]
[418983509,1774709449721,-166.0,0.00025,3]
[418983510,1774709449730,-1523.0,0.00025,3]
[418983511,1774709449741,-166.0,0.00025,3]
[418983512,1774709449750,-152.0,0.00025,3]
[418983513,1774709449760,-1523.0,0.00025,3]
[418983514,1774709449769,-166.0,0.00025,3]
[418983515,1774709449779,-227.40820668,0.00025,3]
[418983516,1774709449789,-1523.0,0.00025,3]
[418983517,1774709449799,-152.0,0.00025,3]
[418983518,1774709449809,-166.0,0.00025,3]
[418983519,1774709449818,-1523.0,0.00025,3]
[418983520,1774709449828,-152.0,0.00025,3]
[418983521,1774709449837,-166.0,0.00025,3]
[418983522,1774709449847,-1523.0,0.00025,3]
[418983523,1774709449857,-152.0,0.00025,3]
[418983524,1774709449866,-1523.0,0.00025,3]
[418983525,1774709449876,-166.0,0.00025,3]
[418983526,1774709449885,-152.0,0.00025,3]
[418983527,1774709449894,-1523.0,0.00025,3]
[418983528,1774709449903,-172.0,0.00025,3]
[418983529,1774709449912,-152.0,0.00025,3]
[418983530,1774709449922,-1523.0,0.00025,3]
[418983531,1774709449931,-152.0,0.00025,3]
[418983532,1774709449940,-1523.0,0.00025,3]
[418983533,1774709449949,-152.0,0.00025,3]
[418983534,1774709449959,-1523.0,0.00025,3]
[418983535,1774709449968,-152.0,0.00025,3]
[418983536,1774709449978,-1523.0,0.00025,3]
[418983537,1774709449988,-152.0,0.00025,3]
[418983538,1774709449999,-1523.0,0.00025,3]
[418983539,1774709450009,-152.0,0.00025,3]
[418983540,1774709450018,-1523.0,0.00025,3]
[418983541,1774709450027,-152.0,0.00025,3]
[418983542,1774709450037,-1523.0,0.00025,3]
[418983543,1774709450047,-223.75047066,0.00025,3]
[418983544,1774709450057,-1523.0,0.00025,3]
[418983545,1774709450067,-1523.0,0.00025,3]
[418983546,1774709450077,-1523.0,0.00025,3]
[418983547,1774709450087,-1523.0,0.00025,3]
[418983548,1774709450097,-1523.0,0.00025,3]
[418983549,1774709450107,-1523.0,0.00025,3]
[418983550,1774709450117,-1469.79512494,0.00025,3]
[418983551,1774709450126,-959.64475997,0.00025,3]
[418983552,1774709450136,-743.78901792,0.00025,7]
[418983553,1774709450145,-177.0,0.00025,2]
[418983554,1774709450155,-229.0,0.00025,2]
[418983555,1774709450164,-272.0,0.00025,2]
[418983556,1774709450174,-397.0,0.00025,2]
[418983557,1774709450184,-160.0,0.00025,3]
[418983558,1774709450194,-1523.0,0.00025,3]
[418983559,1774709450203,-1523.0,0.00025,3]
[418983560,1774709450214,-1523.0,0.00025,3]
[418983561,1774709450223,-1523.0,0.00025,3]
[418983562,1774709450233,-1523.0,0.00025,3]
[418983563,1774709450243,-1294.97467354,0.00025,3]
[418983564,1774709450253,-150.0,0.00025,2]
[418983565,1774709450263,-150.0,0.00025,2]
[418983566,1774709450273,-150.0,0.00025,2]
[418983567,1774709450284,-150.0,0.00025,2]
[418983568,1774709450293,-150.0,0.00025,2]
[418983569,1774709450303,-150.0,0.00025,2]
[418983570,1774709450312,-150.0,0.00025,2]
[418983571,1774709450322,-150.0,0.00025,2]
[418983572,1774709450331,-150.0,0.00025,2]
[418983573,1774709450341,-150.0,0.00025,2]
[418983574,1774709450351,-150.0,0.00025,2]
[418983575,1774709450360,-150.0,0.00025,2]
[418983576,1774709450370,-150.0,0.00025,2]
[418983577,1774709450478,-150.0,0.00025,2]
[418983578,1774709450488,-189.93469316,0.00025,2]
[418983579,1774709450498,-850.0,0.00025008,2]
[418983580,1774709450508,-215.03606229,0.00025008,2]
[418983581,1774709450518,-350.0,0.00025053,2]
[418983582,1774709450528,-278.61157668,0.000253,5]
[418983583,1774709450538,-350.0,0.00025304,2]
[418983584,1774709450547,-179.0,0.00025319,120]
[418983585,1774709450557,-49853.26459052,0.0002539,2]
[418983586,1774709450567,-2957.83,0.000254,7]
[418983587,1774709450576,-16717.74,0.000254,2]
[418983588,1774709450586,-150.0,0.000255,7]
[418983589,1774709450596,-300.0,0.000255,2]
[418983590,1774709450605,-150.0,0.000255,2]
[418983591,1774709450615,-233.7,0.00025548,2]
[418983592,1774709450624,-950.0,0.00025556,2]
[418983593,1774709450634,-294.0,0.00025584,2]
[418983594,1774709450644,-500.0,0.00025586,120]
[418983595,1774709450654,-2314.3016,0.000256,2]
[418983596,1774709450663,-959.64475997,0.000258,3]
[418983597,1774709450673,-367.56362292,0.000258,7]
[418983598,1774709450683,-250.0,0.0002584,2]
[418983599,1774709450692,-150.0,0.0002589,2]
[418983600,1774709450702,-621.0,0.00025977,2]
[418983601,1774709450712,-1045.0,0.00025977,2]
[418983602,1774709450722,-1262.0,0.00025977,2]
[418983603,1774709450731,-415.0,0.00025977,2]
[418983604,1774709450741,-604.74988282,0.0002599,2]
[418983605,1774709450750,-4552.51419926,0.00026,2]
[418983606,1774709450760,-217.87358057,0.00026,2]
[418983607,1774709450770,-557.04,0.00026,7]
[418983608,1774709450780,-177.0,0.00026,2]
[418983609,1774709450791,-229.0,0.00026,2]
[418983610,1774709450800,-272.0,0.00026,2]
[418983611,1774709450809,-397.0,0.00026,2]
[418983612,1774709450819,-13566.7259,0.00026048,2]
[418983613,1774709450829,-1050.0,0.00026104,2]
[418983614,1774709450839,-152.0,0.00026222,3]
[418983615,1774709450848,-1272.63,0.0002623,2]
[418983616,1774709450859,-350.0,0.00026237,2]
[418983617,1774709450868,-906.44795314,0.000263,2]
[418983618,1774709450878,-1000.0,0.00026342,2]
[418983619,1774709450888,-4427.0,0.00026394,2]
[418983620,1774709450898,-27671.9186096,0.000264,2]
[418983621,1774709450907,-350.0,0.00026475,2]
[418983622,1774709450916,-959.64475997,0.000265,3]
[418983623,1774709450926,-836.75959257,0.00026575,82]
[418983624,1774709450935,-179.0,0.00026585,120]
[418983625,1774709450944,-2000.0,0.000266,2]
[418983626,1774709450955,-1035.82335233,0.00026652,2]
[418983627,1774709450966,-282.33825005,0.00026655,7]
[418983628,1774709450977,-350.0,0.00026665,2]
[418983629,1774709450986,-2807.0,0.00026667,3]
[418983630,1774709450996,-350.0,0.00026787,2]
[418983631,1774709451006,-2368.01,0.000269,7]
[418983632,1774709451016,-3042.6558,0.000269,2]
[418983633,1774709451027,-17709.0,0.00026949,2]
[418983634,1774709451036,-250.0,0.00027,2]
[418983635,1774709451047,-1041.61871394,0.00027,2]
[418983636,1774709451057,-530.0,0.00027,2]
[418983637,1774709451066,-2000.0,0.00027,2]
[418983638,1774709451079,-600.0,0.00027,2]
[418983639,1774709451089,-3605.62,0.00027,7]
[418983640,1774709451098,-185.60163082,0.00027,2]
[418983641,1774709451108,-247.99505634,0.00027,2]
[418983642,1774709451117,-278.34021899,0.00027,2]
[418983643,1774709451128,-413.5700346,0.00027,2]
[418983644,1774709451137,-2526.662348,0.0002701,2]
[418983645,1774709451146,-152.0,0.00027067,4]
[418983646,1774709451156,-388.35955312,0.00027077,2]
[418983647,1774709451165,-3716.35,0.00027123,2]
[418983648,1774709451174,-150.0,0.00027185,2]
[418983649,1774709451184,-519.0,0.000272,13]
[418983650,1774709451193,-250.0,0.00027282,2]
[418983651,1774709451202,-4139.85861535,0.0002739,2]
[418983652,1774709451212,-8178.40186607,0.0002739,2]
[418983653,1774709451222,-76585.4126392,0.00027396,7]
[418983654,1774709451232,-570.20192882,0.00027397,2]
[418983655,1774709451241,-1456.61,0.00027397,2]
[418983656,1774709451250,-523.27,0.00027397,2]
[418983657,1774709451261,-300.0,0.00027397,2]
[418983658,1774709451270,-151.0,0.00027397,2]
[418983659,1774709451280,-163.62243711,0.00027397,2]
[418983660,1774709451289,-876.59,0.00027397,2]
[418983661,1774709451298,-151.0,0.00027397,2]
[418983662,1774709451308,-1000.0,0.00027397,20]
[418983663,1774709451318,-913.945606,0.00027397,2]
[418983664,1774709451328,-913.945606,0.00027397,2]
[418983665,1774709451337,-913.945606,0.00027397,2]
[418983666,1774709451347,-913.945606,0.00027397,2]
[418983667,1774709451357,-977.716527,0.00027397,2]
[418983668,1774709451367,-977.716527,0.00027397,2]
[418983669,1774709451377,-2005.676861,0.00027397,2]
[418983670,1774709451386,-977.716527,0.00027397,2]
[418983671,1774709451396,-2005.676861,0.00027397,2]
[418983672,1774709451405,-977.716527,0.00027397,2]
[418983673,1774709451415,-2005.676861,0.00027397,2]
[418983674,1774709451424,-63767.21,0.00027397,10]
[418983675,1774709451436,-2005.676861,0.00027397,2]
[418983676,1774709451446,-53139.34,0.00027397,10]
[418983677,1774709451457,-778.905462,0.00027397,2]
[418983678,1774709451467,-1255.937583,0.00027397,2]
[418983679,1774709451477,-778.905462,0.00027397,2]
[418983680,1774709451488,-500.0,0.00027397,5]
[418983681,1774709451498,-167.0,0.00027397,2]
[418983682,1774709451508,-167.0,0.00027397,2]
[418983683,1774709451518,-167.0,0.00027397,2]
[418983684,1774709451528,-167.0,0.00027397,2]
[418983685,1774709451538,-167.0,0.00027397,2]
[418983686,1774709451547,-167.0,0.00027397,2]
[418983687,1774709451556,-167.0,0.00027397,2]
[418983688,1774709451567,-182.88297656,0.00027397,2]
[418983689,1774709451578,-161.11126088,0.00027397,5]
[418983690,1774709451588,-2957.83,0.000274,7]
[418983691,1774709451598,-16717.74,0.000274,2]
[418983692,1774709451609,-202.71352242,0.000275,2]
[418983693,1774709451620,-553.68151608,0.000275,2]
[418983694,1774709451640,-1000.0,0.000275,7]
[418983695,1774709451651,-500.0,0.00027686,120]
[418983696,1774709451661,-1500.0,0.00027712,2]
[418983697,1774709451671,-152.0,0.00027913,5]
[418983698,1774709451681,-179.0,0.00027914,120]
[418983699,1774709451692,-51235.47014333,0.00028,2]
[418983700,1774709451701,-160.0,0.00028,2]
[418983701,1774709451711,-643.0,0.00028,2]
[418983702,1774709451720,-160.0,0.00028,10]
[418983703,1774709451730,-564.07798851,0.00028,5]
[418983704,1774709451741,-557.04,0.000282,7]
[418983705,1774709451751,-4000.2368,0.000282,2]
[418983706,1774709451761,-387.46478059,0.00028343,2]
[418983707,1774709451771,-1272.63,0.00028393,2]
[418983708,1774709451781,-233.7,0.00028493,2]
[418983709,1774709451791,-150.0,0.00028544,2]
[418983710,1774709451800,-3132.5268585,0.0002861,2]
[418983711,1774709451810,-250.0,0.00028724,2]
[418983712,1774709451819,-152.0,0.00028759,6]
[418983713,1774709451829,-1000.0,0.00028767,5]
[418983714,1774709451840,-259.43509283,0.00028823,3]
[418983715,1774709451850,-2368.01,0.000289,7]
[418983716,1774709451860,-3647.0,0.00028958,2]
[418983717,1774709451870,-621.0,0.00028977,2]
[418983718,1774709451880,-1045.0,0.00028977,2]
[418983719,1774709451889,-1262.0,0.00028977,2]
[418983720,1774709451899,-1754.04703919,0.00029,2]
[418983721,1774709451908,-506.16438707,0.00029,2]
[418983722,1774709451918,-650.0,0.00029,2]
[418983723,1774709451927,-388.0,0.00029,2]
[418983724,1774709451937,-388.0,0.00029,2]
[418983725,1774709451946,-3605.62,0.00029,7]
[418983726,1774709451956,-254.38584548,0.00029041,120]
[418983727,1774709451966,-2000.0,0.00029082,2]
[418983728,1774709451976,-5259.1866,0.000295,2]
[418983729,1774709451985,-152.0,0.00029605,7]
[418983730,1774709451996,-9070.0,0.00029644,2]
[418983731,1774709452006,-2957.83,0.000297,7]
[418983732,1774709452015,-16717.74,0.000297,2]
[418983733,1774709452025,-79546.64531557,0.000299,2]
[418983734,1774709452034,-150.0,0.00029971,2]
[418983735,1774709452044,-239.20697138,0.0002999,2]
[418983736,1774709452054,-150.0,0.0003,2]
[418983737,1774709452063,-47860.46838681,0.0003,2]
[418983738,1774709452072,-500.0,0.0003,2]
[418983739,1774709452081,-150.0,0.0003,11]
[418983740,1774709452091,-10000.0,0.0003,10]
[418983741,1774709452101,-18604.69093851,0.0003,2]
[418983742,1774709452110,-9500.0,0.0003,3]
[418983743,1774709452120,-20035.74772119,0.0003,2]
[418983744,1774709452130,-74445.31261566,0.0003,10]
[418983745,1774709452140,-321.97553684,0.0003,2]
[418983746,1774709452151,-1833.16270133,0.0003,2]
[418983747,1774709452160,-581.3261246,0.0003,4]
[418983748,1774709452170,-3315.35330489,0.0003,10]
[418983749,1774709452180,-164.40024404,0.0003,2]
[418983750,1774709452190,-1005.7045591,0.0003,2]
[418983751,1774709452202,-150.0,0.0003,2]
[418983752,1774709452212,-118009.07847239,0.0003,5]
[418983753,1774709452223,-170.44482904,0.0003,2]
[418983754,1774709452235,-7542.1701281,0.0003,2]
[418983755,1774709452246,-188.1126975,0.0003,10]
[418983756,1774709452260,-1082.92226376,0.0003013,2]
[418983757,1774709452419,-13970.23633983,0.0003013,2]
[418983758,1774709452431,-639.58796766,0.0003013,2]
[418983759,1774709452441,-203.46887147,0.0003013,2]
[418983760,1774709452450,-7797.31322988,0.0003013,2]
[418983761,1774709452460,-151.29988624,0.00030136,20]
[418983762,1774709452469,-876.59,0.00030137,2]
[418983763,1774709452478,-196.184062,0.00030137,7]
[418983764,1774709452487,-196.184062,0.00030137,7]
[418983765,1774709452497,-196.184062,0.00030137,7]
[418983766,1774709452506,-196.184062,0.00030137,7]
[418983767,1774709452515,-1500.0,0.00030137,5]
[418983768,1774709452524,-250.0,0.00030166,2]
[418983769,1774709452533,-167.750103,0.00030176,2]
[418983770,1774709452542,-151.0,0.00030176,7]
[418983771,1774709452551,-151.0,0.00030176,7]
[418983772,1774709452560,-151.0,0.00030176,7]
[418983773,1774709452569,-271.46715,0.00030176,7]
[418983774,1774709452579,-151.0,0.00030176,7]
[418983775,1774709452591,-151.0,0.00030176,7]
[418983776,1774709452600,-151.0,0.00030176,7]
[418983777,1774709452610,-151.0,0.00030176,7]
[418983778,1774709452620,-294.560932,0.00030176,7]
[418983779,1774709452630,-151.0,0.00030176,7]
[418983780,1774709452639,-151.0,0.00030176,7]
[418983781,1774709452649,-151.0,0.00030176,7]
[418983782,1774709452659,-270.037887,0.00030176,7]
[418983783,1774709452670,-207.98764,0.00030176,7]
[418983784,1774709452680,-207.98764,0.00030176,7]
[418983785,1774709452690,-207.98764,0.00030176,7]
[418983786,1774709452700,-207.98764,0.00030176,7]
[418983787,1774709452710,-151.0,0.00030176,7]
[418983788,1774709452721,-151.0,0.00030176,7]
[418983789,1774709452731,-196.184062,0.00030176,7]
[418983790,1774709452741,-196.184062,0.00030176,7]
[418983791,1774709452751,-196.184062,0.00030176,7]
[418983792,1774709452763,-196.184062,0.00030176,7]
[418983793,1774709452773,-151.0,0.00030176,7]
[418983794,1774709452783,-182.803556,0.00030176,7]
[418983795,1774709452793,-182.803556,0.00030176,7]
[418983796,1774709452803,-182.803556,0.00030176,7]
[418983797,1774709452812,-182.803556,0.00030176,7]
[418983798,1774709452823,-162.967794,0.00030176,7]
[418983799,1774709452834,-151.0,0.00030176,7]
[418983800,1774709452844,-151.0,0.00030176,7]
[418983801,1774709452854,-151.0,0.00030176,7]
[418983802,1774709452863,-151.0,0.00030176,7]
[418983803,1774709452872,-151.0,0.00030176,7]
[418983804,1774709452882,-151.0,0.00030176,7]
[418983805,1774709452891,-406.762198,0.00030176,7]
[418983806,1774709452900,-406.762198,0.00030176,7]
[418983807,1774709452910,-406.762198,0.00030176,7]
[418983808,1774709452920,-406.762198,0.00030176,7]
[418983809,1774709452931,-1837.713949,0.00030176,7]
[418983810,1774709452942,-1837.713949,0.00030176,7]
[418983811,1774709452953,-1837.713949,0.00030176,7]
[418983812,1774709452962,-1837.713949,0.00030176,7]
[418983813,1774709452972,-170.706749,0.00030176,7]
[418983814,1774709452981,-170.706749,0.00030176,7]
[418983815,1774709452994,-170.706749,0.00030176,7]
[418983816,1774709453004,-170.706749,0.00030176,7]
[418983817,1774709453014,-9245.710185,0.00030176,7]
[418983818,1774709453023,-9245.710185,0.00030176,7]
[418983819,1774709453034,-9245.710185,0.00030176,7]
[418983820,1774709453044,-9245.710185,0.00030176,7]
[418983821,1774709453054,-151.0,0.00030176,7]
[418983822,1774709453063,-151.0,0.00030176,7]
[418983823,1774709453073,-151.0,0.00030176,7]
[418983824,1774709453083,-188.291554,0.00030176,7]
[418983825,1774709453092,-188.291554,0.00030176,7]
[418983826,1774709453102,-188.291554,0.00030176,7]
[418983827,1774709453112,-188.291554,0.00030176,7]
[418983828,1774709453121,-254.618086,0.00030176,7]
[418983829,1774709453131,-254.618086,0.00030176,7]
[418983830,1774709453141,-254.618086,0.00030176,7]
[418983831,1774709453151,-254.618086,0.00030176,7]
[418983832,1774709453160,-913.945606,0.00030176,7]
[418983833,1774709453170,-913.945606,0.00030176,7]
[418983834,1774709453179,-913.945606,0.00030176,7]
[418983835,1774709453189,-913.945606,0.00030176,7]
[418983836,1774709453200,-249.669586,0.00030176,7]
[418983837,1774709453209,-249.669586,0.00030176,7]
[418983838,1774709453219,-249.669586,0.00030176,7]
[418983839,1774709453231,-249.669586,0.00030176,7]
[418983840,1774709453242,-977.716527,0.00030176,7]
[418983841,1774709453252,-977.716527,0.00030176,7]
[418983842,1774709453263,-2005.676861,0.00030176,7]
[418983843,1774709453273,-977.716527,0.00030176,7]
[418983844,1774709453282,-2005.676861,0.00030176,7]
[418983845,1774709453293,-977.716527,0.00030176,7]
[418983846,1774709453304,-151.0,0.00030176,7]
[418983847,1774709453313,-2005.676861,0.00030176,7]
[418983848,1774709453323,-2005.676861,0.00030176,7]
[418983849,1774709453332,-606.320897,0.00030176,7]
[418983850,1774709453342,-151.0,0.00030176,7]
[418983851,1774709453352,-606.320897,0.00030176,7]
[418983852,1774709453362,-151.0,0.00030176,7]
[418983853,1774709453372,-606.320897,0.00030176,7]
[418983854,1774709453382,-266.924629,0.00030176,7]
[418983855,1774709453392,-606.320897,0.00030176,7]
[418983856,1774709453401,-151.0,0.00030176,7]
[418983857,1774709453411,-151.0,0.00030176,7]
[418983858,1774709453421,-151.0,0.00030176,7]
[418983859,1774709453430,-393.472175,0.00030176,7]
[418983860,1774709453440,-151.0,0.00030176,7]
[418983861,1774709453450,-778.905462,0.00030176,7]
[418983862,1774709453460,-1255.937583,0.00030176,7]
[418983863,1774709453470,-393.472175,0.00030176,7]
[418983864,1774709453480,-778.905462,0.00030176,7]
[418983865,1774709453490,-598938.958299,0.00030176,2]
[418983866,1774709453500,-15668.44686209,0.000302,2]
[418983867,1774709453509,-151.803349,0.000302,7]
[418983868,1774709453519,-2000.0,0.000303,2]
[418983869,1774709453528,-168.19,0.00030392,2]
[418983870,1774709453538,-152.0,0.00030451,8]
[418983871,1774709453547,-2500.0,0.00030452,2]
[418983872,1774709453557,-557.04,0.000305,30]
[418983873,1774709453573,-1272.63,0.00030555,2]
[418983874,1774709453592,-6914.3514,0.000307,2]
[418983875,1774709453604,-1622.89198187,0.0003084,2]
[418983876,1774709453614,-500.0,0.00030877,2]
[418983877,1774709453625,-500.0,0.00030877,2]
[418983878,1774709453635,-381.0,0.00030877,2]
[418983879,1774709453644,-346.78171837,0.00031,5]
[418983880,1774709453654,-7893.49573327,0.00031,20]
[418983881,1774709453664,-52006.93868616,0.00031,2]
[418983882,1774709453674,-2368.01,0.000311,7]
[418983883,1774709453683,-150.0,0.00031273,30]
[418983884,1774709453693,-152.0,0.00031297,9]
[418983885,1774709453704,-3605.62,0.000313,7]
[418983886,1774709453713,-133641.3456844,0.00031375,2]
[418983887,1774709453723,-19977.69944669,0.0003143,4]
[418983888,1774709453733,-150.0,0.0003147,2]
[418983889,1774709453743,-199.08842263,0.000315,2]
[418983890,1774709453752,-150.0,0.000315,2]
[418983891,1774709453761,-1109.08387476,0.00031507,5]
[418983892,1774709453770,-519.0,0.000316,17]
[418983893,1774709453780,-250.0,0.00031608,2]
[418983894,1774709453789,-250.0,0.00031654,20]
[418983895,1774709453799,-16717.74,0.000317,2]
[418983896,1774709453809,-2500.0,0.00031822,2]
[418983897,1774709453820,-2957.83,0.000319,7]
[418983898,1774709453829,-849.05,0.00031919,2]
[418983899,1774709453839,-621.0,0.00031977,2]
[418983900,1774709453848,-1045.0,0.00031977,2]
[418983901,1774709453858,-1262.0,0.00031977,2]
[418983902,1774709453868,-9090.4278,0.00032,2]
[418983903,1774709453878,-152.0,0.00032143,10]
[418983904,1774709453887,-387.46478059,0.00032228,2]
[418983905,1774709453897,-902.09897535,0.000323,2]
[418983906,1774709453909,-353.86531261,0.00032392,2]
[418983907,1774709453919,-3132.5268585,0.00032416,2]
[418983908,1774709453928,-446.0,0.000326,2]
[418983909,1774709453938,-450.0,0.0003271,2]
[418983910,1774709453948,-450.0,0.0003271,2]
[418983911,1774709453958,-407.0,0.0003271,2]
[418983912,1774709453968,-1272.63,0.00032718,2]
[418983913,1774709453978,-2019.8128,0.00032776,2]
[418983914,1774709453987,-4874.07505453,0.000328,2]
[418983915,1774709453997,-1738.13086741,0.0003287,4]
[418983916,1774709454006,-823.58,0.00032876,2]
[418983917,1774709454016,-1000.0,0.00032876,2]
[418983918,1774709454026,-1000.0,0.00032876,2]
[418983919,1774709454035,-1000.0,0.00032876,2]
[418983920,1774709454046,-1000.0,0.00032876,2]
[418983921,1774709454056,-1000.0,0.00032876,2]
[418983922,1774709454066,-1000.000001,0.00032876,2]